Cogmind - Beta 12 @@@ ROGUE MODE // 2023.04.21 @ 22:05:48 Player: wchar_t Result: Destroyed by B-75 Beast with Heavy Machine Gun Performance ------------- Evolutions (1) 500 Regions Visited (6) 1200 Robots Destroyed (10) 50 Value Destroyed (142) 142 Prototype IDs (1) 20 Alien Tech Used (0) 0 Bonus (600) 600 TOTAL SCORE: 2512 Bonus ------- Met Imprinter 300 Was Imprinted 300 Cogmind --------- Core Integrity 0/400 Matter 206/300 Energy 99/100 System Corruption 0% Temperature Cool (0) Movement Core (50) Location -6/Proximity Caves Parts ------- > --- POWER (1) -------- (None) > --- PROPULSION (3) --- (None) > --- UTILITY (3) ------ Advanced Terrain Scan Processor > --- WEAPON (2) ------- CR-A16's Behemoth Slayer > --- INVENTORY (5) ---- VTOL Module Hacking Drone Bay Grenade Launcher Peak State ------------ > --- POWER ------------ Makeshift Power Source > --- PROPULSION ------- VTOL Module VTOL Module VTOL Module > --- UTILITY ---------- Improved Sensor Array Advanced Terrain Scan Processor Makeshift Armor Plating > --- WEAPON ----------- CR-A16's Pointy Stick > --- INVENTORY -------- VTOL Module Hacking Drone Bay Grenade Launcher [Rating: 26] Favorites ----------- Power Makeshift Power Source Engine Makeshift Power Source Propulsion VTOL Module Flight Unit VTOL Module Utility Makeshift Armor Plating Device Improved Sensor Array Processor Advanced Terrain Scan Processor Protection Makeshift Armor Plating Weapon CR-A16's Pointy Stick Launcher Grenade Launcher Piercing Weapon CR-A16's Pointy Stick Build | -11 -10 -10 -9 -9 -7 -6 ------- Run | Jun Mat Min Mat Min Zio Pro Slots Evolved 2 | . . . 2 . . . Power . | . . . . . . . Propulsion 1 | . . . 1 . . . Utility 1 | . . . 1 . . . Weapon . | . . . . . . . Parts Attached 18 | . 3 . 7 . 6 2 Power 1 | . . . . . 1 . Engine 1 | . . . . . 1 . Core . | . . . . . . . Reactor . | . . . . . . . Propulsion 10 | . 2 . 5 . 2 1 Treads . | . . . . . . . Leg . | . . . . . . . Wheel . | . . . . . . . Hover . | . . . . . . . Flight 10 | . 2 . 5 . 2 1 Utility 3 | . . . . . 3 . Device 1 | . . . . . 1 . Storage . | . . . . . . . Processor 1 | . . . . . 1 . Hackware . | . . . . . . . Protection 1 | . . . . . 1 . Artifact . | . . . . . . . Weapon 4 | . 1 . 2 . . 1 Energy Gun . | . . . . . . . Energy Cannon . | . . . . . . . Ballistic Gun . | . . . . . . . Ballistic Cannon . | . . . . . . . Launcher 3 | . 1 . 2 . . . Special Weapon . | . . . . . . . Impact Weapon . | . . . . . . . Slashing Weapon . | . . . . . . . Piercing Weapon 1 | . . . . . . 1 Special Melee Weapon . | . . . . . . . Unidentified Prototypes . | . . . . . . . Parts Lost 10 | . . . 3 . . 7 Power 1 | . . . . . . 1 Propulsion 7 | . . . 3 . . 4 Utility 2 | . . . . . . 2 Weapon . | . . . . . . . Highest Loss Streak 7 | . . . 3 . . 7 To Critical Strikes . | . . . . . . . Average Slot Usage (%) 38 | . 15 28 30 11 45 68 Engine 3 | . . . . . 6 10 Flight 24 | . 15 28 29 11 29 26 Device 2 | . . . . . 2 8 Processor 2 | . . . . . 2 11 Protection 3 | . . . . . 6 9 Naked Turns 56 | . 56 . . . . . Heaviest Build 12 | . . . 3 . 9 12 Greatest Support 12 | 3 8 8 12 4 12 12 Greatest Overweight (x) 2 | . . . . . . 2 Average Overweight (x) . | . . . . . . . Largest Inventory Capacity 5 | 5 5 5 5 5 5 5 Average Capacity 5 | 5 5 5 5 5 5 5 Most Carried 5 | . 3 3 5 5 5 5 Average Carried 3 | . 1 3 4 5 4 4 Final Capacity 5 | 5 5 5 5 5 5 5 Final Carried 5 | . 3 3 5 5 5 3 Class Distribution -------------------- 63% | Mutant 22% | Sprinter 13% | Derelict-Sprinter Dominant Class ---------------- Mutant | -10/Materials Mutant | -10/Mines Mutant | -9/Materials Mutant | -9/Mines Sprinter | -7/Zion Mutant | -6/Proximity Caves Resources | -11 -10 -10 -9 -9 -7 -6 ----------- Run | Jun Mat Min Mat Min Zio Pro Matter Collected 296 | 200 . . 75 . 15 6 Remotely . | . . . . . . . Salvage Created 110 | . 23 . 87 . . . Parts 13 | . 4 . 9 . . . Haulers Intercepted . | . . . . . . . Recyclers Shooed . | . . . . . . . Parts Field Recycled . | . . . . . . . Retrieved Matter . | . . . . . . . Parts Self-Destructed . | . . . . . . . Prevented . | . . . . . . . Kills | -11 -10 -10 -9 -9 -7 -6 ------- Run | Jun Mat Min Mat Min Zio Pro Combat Hostiles Destroyed 8 | . 3 . 5 . . . AOE 8 | . 3 . 5 . . . Classes Destroyed 4 | . 1 . 3 . . . Worker 1 | . . . 1 . . . Tunneler 1 | . . . 1 . . . Swarmer 7 | . 3 . 4 . . . Grunt 1 | . . . 1 . . . Best Kill Streak 7 | . 3 . 7 . . . Combat Bots Only 5 | . 3 . 5 . . . Max Kills in Single Turn 3 | . 3 . 2 . . . Gunslinging . | . . . . . . . Exploded 3 | . 3 . 2 . . . Melee . | . . . . . . . Uniques/NPCs Destroyed . | . . . . . . . Combat | -11 -10 -10 -9 -9 -7 -6 -------- Run | Jun Mat Min Mat Min Zio Pro Damage Taken 1163 | . 150 . 246 . . 767 Core 551 | . 138 . 124 . . 289 Absorbed by Shields . | . . . . . . . Core Remaining (%) 72 | 100 . 44 . . . . Volleys Fired 6 | . 1 . 5 . . . Largest 1 | . 1 . 1 . . . Hottest 30 | . 30 . 30 . . . Shots Fired 6 | . 1 . 5 . . . Gun . | . . . . . . . Cannon . | . . . . . . . Launcher 6 | . 1 . 5 . . . Special . | . . . . . . . Kinetic . | . . . . . . . Thermal . | . . . . . . . Explosive 6 | . 1 . 5 . . . Electromagnetic . | . . . . . . . Robot Hit Streak 4 | . 1 . 4 . . . Robot Miss Streak . | . . . . . . . Penetration Max . | . . . . . . . Secondary Targets . | . . . . . . . Shots Hit Robots 11 | . 1 . 3 . . 7 Core Hits 17 | . 5 . 10 . . 2 Critical Kills . | . . . . . . . Critical Parts Destroyed . | . . . . . . . Critical Strikes . | . . . . . . . Melee Attacks 11 | . . . . . . 11 Impact . | . . . . . . . Slashing . | . . . . . . . Piercing 11 | . . . . . . 11 Sneak Attacks . | . . . . . . . Combat Hostiles . | . . . . . . . Follow-up Attacks . | . . . . . . . Damage Inflicted 786 | . 136 . 398 . . 252 Guns . | . . . . . . . Cannons . | . . . . . . . Explosions 499 | . 101 . 398 . . . Melee 252 | . . . . . . 252 Ramming 35 | . 35 . . . . . Kinetic . | . . . . . . . Thermal . | . . . . . . . Explosive 499 | . 101 . 398 . . . Electromagnetic . | . . . . . . . Impact . | . . . . . . . Slashing . | . . . . . . . Piercing 252 | . . . . . . 252 Highest Corruption . | . . . . . . . Average Corruption . | . . . . . . . Corruption Purged . | . . . . . . . Corruption Blocked . | . . . . . . . Overload Shots . | . . . . . . . Overflow Damage . | . . . . . . . Projectiles . | . . . . . . . Explosions . | . . . . . . . Melee . | . . . . . . . Knockbacks . | . . . . . . . Impact . | . . . . . . . Kinetic . | . . . . . . . Secondary . | . . . . . . . Self-Inflicted Damage 19 | . 19 . . . . . Shots 1 | . 1 . . . . . Rammed 12 | . 12 . . . . . Targets Rammed 12 | . 12 . . . . . Kicked . | . . . . . . . Crushed . | . . . . . . . Highest Temperature 66 | . . . 4 . 17 66 Average Temperature 17 | . . . 4 . 6 33 Received Heat Transfer 291 | . 63 . 99 . . 129 Siege Activations . | . . . . . . . Robots Corrupted . | . . . . . . . Combat Hostiles . | . . . . . . . Parts Fried . | . . . . . . . Impact Corruptions . | . . . . . . . Robots Melted . | . . . . . . . Combat Hostiles . | . . . . . . . Parts Melted . | . . . . . . . Heat Transferred . | . . . . . . . Parts Sabotaged . | . . . . . . . Parts Stolen . | . . . . . . . Parts Stripped . | . . . . . . . Power Chain Reactions . | . . . . . . . Missiles Intercepted . | . . . . . . . Alert | -11 -10 -10 -9 -9 -7 -6 ------- Run | Jun Mat Min Mat Min Zio Pro Peak Influence 292 | . 183 70 292 113 . . Initial 113 | . . 70 27 113 . . Average 106 | . 88 70 154 113 . . Maximum Alert Level 1 | . . . 1 . . . Low Security (%) 86 | 100 100 100 54 100 . . Level 1 13 | . . . 45 . . . Level 2 . | . . . . . . . Level 3 . | . . . . . . . Level 4 . | . . . . . . . Level 5 . | . . . . . . . High Security . | . . . . . . . Max Security . | . . . . . . . Squads Dispatched 3 | . 1 . 2 . . . Investigation 2 | . . . 2 . . . Extermination . | . . . . . . . Reinforcement 1 | . 1 . . . . . Assault . | . . . . . . . Garrison . | . . . . . . . Intercept . | . . . . . . . Searches Triggered . | . . . . . . . Construction Impeded . | . . . . . . . Haulers Reinforced . | . . . . . . . Active Scanning Responses . | . . . . . . . Cargo Convoy Interrupts . | . . . . . . . Stealth | -11 -10 -10 -9 -9 -7 -6 --------- Run | Jun Mat Min Mat Min Zio Pro Distress Signals 4 | . . . 4 . . . Communications Jammed . | . . . . . . . Distress Signals . | . . . . . . . Times Spotted 52 | . 13 . 26 3 . 10 Peak Tracking Total 20 | . 6 . 20 3 . 9 Tactical Retreats 7 | . 1 . 2 . . 4 Traps | -11 -10 -10 -9 -9 -7 -6 ------- Run | Jun Mat Min Mat Min Zio Pro Traps Triggered . | . . . . . . . Indirectly . | . . . . . . . Trap Hack Attempts . | . . . . . . . Triggered . | . . . . . . . Disarmed . | . . . . . . . Reprogrammed . | . . . . . . . Reused . | . . . . . . . Traps Extracted . | . . . . . . . Installed . | . . . . . . . Triggered . | . . . . . . . Machines | -11 -10 -10 -9 -9 -7 -6 ---------- Run | Jun Mat Min Mat Min Zio Pro Machines Disabled 3 | . 2 . 1 . . . Max in Single Turn 2 | . 2 . 1 . . . Machines Repaired . | . . . . . . . Machines Sabotaged . | . . . . . . . Overloaded Fab Kills . | . . . . . . . Hacking | -11 -10 -10 -9 -9 -7 -6 --------- Run | Jun Mat Min Mat Min Zio Pro Machines Accessed 4 | . 1 . 3 . . . Terminals 4 | . 1 . 3 . . . Fabricators . | . . . . . . . Repair Stations . | . . . . . . . Recycling Units . | . . . . . . . Scanalyzers . | . . . . . . . Garrison Access . | . . . . . . . Total Hacks 9 | . 1 . 8 . . . Successful 4 | . 1 . 3 . . . Failed 5 | . . . 5 . . . Catastrophic 3 | . . . 3 . . . Database Lockouts . | . . . . . . . Manual 7 | . 1 . 6 . . . Terminals 9 | . 1 . 8 . . . Fabricators . | . . . . . . . Repair Stations . | . . . . . . . Recycling Units . | . . . . . . . Scanalyzers . | . . . . . . . Garrison Access . | . . . . . . . Terminal Hacks 4 | . 1 . 3 . . . Record 1 | . . . 1 . . . Branch Access Points 2 | . 1 . 1 . . . Zone Layout 1 | . . . 1 . . . Fabricator Hacks . | . . . . . . . Repair Station Hacks . | . . . . . . . Recycling Unit Hacks . | . . . . . . . Scanalyzer . | . . . . . . . Garrison Access Hacks . | . . . . . . . Unauthorized Hacks . | . . . . . . . Terminals . | . . . . . . . Fabricators . | . . . . . . . Repair Stations . | . . . . . . . Recycling Units . | . . . . . . . Scanalyzers . | . . . . . . . Garrison Access . | . . . . . . . Data Cores Recovered . | . . . . . . . Used . | . . . . . . . Hacking Detections 2 | . . . 2 . . . Full Trace Events 2 | . . . 2 . . . Feedback Events . | . . . . . . . Feedback Blocked . | . . . . . . . Robot Schematics Acquired 1 | . . . . . 1 . Robots Built . | . . . . . . . Authchips . | . . . . . . . Time . | . . . . . . . Total Robot Build Rating . | . . . . . . . Part Schematics Acquired 5 | . . . . . 5 . Parts Built . | . . . . . . . Authchips . | . . . . . . . Time . | . . . . . . . Total Part Build Rating . | . . . . . . . Parts Repaired . | . . . . . . . Time . | . . . . . . . Parts Recycled . | . . . . . . . Recycled Matter . | . . . . . . . Retrieved Matter . | . . . . . . . Retrieved Components . | . . . . . . . Parts Scanalyzed . | . . . . . . . Part Schematics Acquired . | . . . . . . . Parts Damaged . | . . . . . . . Bothacking | -11 -10 -10 -9 -9 -7 -6 ------------ Run | Jun Mat Min Mat Min Zio Pro Used RIF Installer . | . . . . . . . Robots Hacked . | . . . . . . . Non-combat . | . . . . . . . Combat . | . . . . . . . Robot Hacks Applied . | . . . . . . . Relay Couplers Released . | . . . . . . . Fabnet Peak Effective % . | . . . . . . . Robots Rewired . | . . . . . . . Allies Hacked . | . . . . . . . Hacks Repelled . | . . . . . . . Allies | -11 -10 -10 -9 -9 -7 -6 -------- Run | Jun Mat Min Mat Min Zio Pro Total Allies 4 | . . . . . 4 . Largest Group 4 | . . . . . 4 . Highest-Rated Group 151 | . . . . . 151 . Highest-Rated Ally 39 | . . . . . 39 . Total Orders . | . . . . . . . Ally Attacks . | . . . . . . . Total Damage . | . . . . . . . Kills . | . . . . . . . Allies Corrupted . | . . . . . . . Allies Melted . | . . . . . . . Intel | -11 -10 -10 -9 -9 -7 -6 ------- Run | Jun Mat Min Mat Min Zio Pro Robot Analysis Total . | . . . . . . . Derelict Logs Recovered 2 | . . . . . 1 1 Drone Launches . | . . . . . . . Drone Recoveries . | . . . . . . . Exploration | -11 -10 -10 -9 -9 -7 -6 ------------- Run | Jun Mat Min Mat Min Zio Pro Turns Passed 624 | 14 130 20 91 38 220 111 Spaces Moved 1614 | 28 265 54 211 107 702 247 Core 112 | 28 81 . . . . 3 Treads . | . . . . . . . Legs . | . . . . . . . Wheels . | . . . . . . . Hover . | . . . . . . . Flight 1502 | . 184 54 211 107 702 244 Fastest Speed 29 | 50 37 37 30 35 29 29 Average Speed 32 | 50 40 37 31 35 29 29 Slowest Speed 195 | 50 50 37 37 35 35 195 Overloaded Moves . | . . . . . . . Propulsion Burnouts . | . . . . . . . Robots Hopped 21 | . . . 15 3 . 3 Cave-ins Triggered . | . . . . . . . Exploration Rate (%) 40 | 2 58 19 38 26 85 57 Regions Visited 6 Branch Regions 4 Pre-discovered Areas 1 | . . . . . 1 . Known Exits Taken 2 | . 1 . 1 . . . Unknown Exits Taken 4 | 1 . 1 . 1 1 . Scrap Searched 3 | . . . . . 2 1 Spaces Dug . | . . . . . . . Terrain Destroyed 20 | . . . 20 . . . Melee . | . . . . . . . Projectile . | . . . . . . . AOE 20 | . . . 20 . . . Terrain Rammed . | . . . . . . . Walls Destroyed . | . . . . . . . Machines Disabled . | . . . . . . . Actions | -11 -10 -10 -9 -9 -7 -6 --------- Run | Jun Mat Min Mat Min Zio Pro Total 1652 | 27 284 53 217 103 709 259 Wait 2 | . . . . . . 2 Move 1570 | 27 264 53 183 100 701 242 Hop 17 | . . . 12 3 . 2 Pick Up 9 | . 3 . 4 . 2 . Fast Attach 7 | . 2 . 1 . 4 . Attach 8 | . 1 . 3 . 2 2 Detach 3 | . 1 . 2 . . . Swap 3 | . . . 3 . . . Drop 4 | . . . 4 . . . Fire 6 | . 1 . 5 . . . Melee 11 | . . . . . . 11 Ram 12 | . 12 . . . . . Kick . | . . . . . . . Crush . | . . . . . . . Escape Stasis . | . . . . . . . Rewire . | . . . . . . . Trap . | . . . . . . . Miscellaneous . | . . . . . . . Route ------- -11/Junkyard -10/Materials (discovered 4 exits: *Mat x3 / *Min) -10/Mines -9/Materials (discovered 4 exits: [*Mat] / *Min / Sto x2) -9/Mines -7/Zion -6/Proximity Caves History --------- Turn | Location | Event 7 | -11/Junkyard | Discovered new exit (range 12) 15 | -11/Junkyard | Entered Materials 49 | -10/Materials | Discovered new exit (range 14) 92 | -10/Materials | Discovered new exit (range 16) 107 | -10/Materials | Discovered new exit (range 10) 123 | -10/Materials | Identified exit to Mines 136 | -10/Materials | Core integrity fell below 50% 145 | -10/Materials | Entered Mines 152 | -10/Mines | Met a Derelict bent on vengeance 161 | -10/Mines | Discovered new exit (range 11) 165 | -10/Mines | Entered Materials 165 | -9/Materials | Evolved 2 slots: Propulsion x1, Utility x1 187 | -9/Materials | Identified exit to Mines 187 | -9/Materials | Identified exit to Storage 239 | -9/Materials | Discovered new exit (range 16) 256 | -9/Materials | Entered Mines 270 | -9/Mines | A Derelict revealed a hidden shortcut to a safe place 272 | -9/Mines | Lost 3 parts (3n) 294 | -9/Mines | Entered Zion 312 | -7/Zion | Build established: Mutant 312 | -7/Zion | Given A8's code to call for help 330 | -7/Zion | Learned location of Extension (-4) 343 | -7/Zion | Learned Factory fabricator intel 371 | -7/Zion | Imprinted 373 | -7/Zion | Declared Zion's savior 407 | -7/Zion | Given the Hacking Drone Bay 407 | -7/Zion | Found Prototype Device 426 | -7/Zion | Found CR-A16's Pointy Stick 512 | -7/Zion | Discovered new exit (range 8) 514 | -7/Zion | Entered Proximity Caves 554 | -6/Proximity Caves | Attracted the attention of an 0b10 checkpoint 566 | -6/Proximity Caves | Learned 4 Factory zone layouts 573 | -6/Proximity Caves | Spotted B-75 Beast 611 | -6/Proximity Caves | Core integrity fell below 50% 622 | -6/Proximity Caves | Revealed the true nature of CR-A16's Pointy Stick 623 | -6/Proximity Caves | Core integrity fell below 20% 625 | -6/Proximity Caves | Destroyed by B-75 Beast with Heavy Machine Gun Last Messages --------------- 00552_ Searching scrap... 00552_ Found Imp. Light Armor Plating. 00552_ Found 10 Matter. 00554_ Y-54 Guardian: "INTERCEPTING UNREGISTERED DERELICT." 00566_ Acquired derelict log, extracted data. Data stored: Factory zone layouts (x4). 00573_ VTOL Module destroyed. 00591_ Imp. Sensor Array destroyed. 00591_ Knocked back. 00595_ Acquired 6 matter. 00597_ VTOL Module destroyed. 00603_ Knocked back. 00606_ Mak. Armor Plating destroyed. 00613_ Mak. Power Source destroyed. 00616_ Knocked back. 00616_ VTOL Module destroyed. 00619_ Knocked back. CR-A16's Pointy Stick's crusty surface crumbles away to reveal its sleek core, which hums to life. 00622_ Knocked back. Map ----- +----------------------------------------------------+ | ?????????????????????????????????????????????????? | | ?????????????????????????????????????????????????? | | ?????????????????????????????????????????????????? | | ?????????????####????????????????????????????????? | | ?#######???## ##???????????????????????????????? | | ?# #???# ###?????????????????????????????? | | ?# #???# ??????????????????????????????? | | #?# #???# #??????????????????????????????? | | ### ##??? #??????????????????????????????? | | ##?? ##?????? #?????????????????????? | | ##?# ##???? ##????????????????????? | | #### ### #??? ##???????????????????? | | ???# ## #??? ????????????????? | | ??## #?? ????????????????? | | ?## % #?# ?????????????????? | | ?# ## ## #?????????????????? | | ### #?????????????????? | | ##?## $#?????????????????? | | ### #???## ## $ #?????????????????? | | #??### ##????# #### #?#####???????????? | | ?????####?????# # # ????????????? | | ??????????????# #?? ?????????????? | | ?????????????## ### ????????????????? | | ?????????????# ##;BB #??????????????????? | | ?????????????# #; BB #???????????????????? | | ?????????##### % @ #????????????????????? | | ?????????# %##????????????????????? | | ?????? ;#?????????????????????? | | ?????? ;###???????????????????? | | ???????###### ## #???????????????????? | | ????????????#; ## ###; #???????????????????? | | ????????????#;# ?###?;; #???????????????????? | | ??????????????# ????## ##??????????????????? | | ??????????????## ????# ##?????????????????? | | ???????????????##????# ######????????????? | | ?????????????????????# ##???????????? | | ?????????????????????# #### #???????????? | | ?????????????????????###???##### ##???????????? | | ????????????????????????????????# #????????????? | | ?????????????????????????????????# ##????????????? | | ??????????????????????????????????##?????????????? | | ?????????????????????????????????????????????????? | | ?????????????????????????????????????????????????? | | ?????????????????????????????????????????????????? | | ?????????????????????????????????????????????????? | | ?????????????????????????????????????????????????? | | ?????????????????????????????????????????????????? | | ?????????????????????????????????????????????????? | | ?????????????????????????????????????????????????? | | ?????????????????????????????????????????????????? | +----------------------------------------------------+ Best States ------------- Heat Dissipation 28 Energy Generation 15 Energy Capacity 170 Matter Stores 300 Matter Capacity 300 Sight Range 16 Robot Scan Range 15 Terrain Scan Density 210 Armor Coverage 100 Evasion (%) 64 Item Schematics ----------------- Imp. Cooling System | -7/Zion | Archive Imp. Reaction Control System | -7/Zion | Archive Arc Projector | -7/Zion | Archive Imp. Medium Treads | -7/Zion | Archive Proton Missile Launcher | -7/Zion | Archive Robot Schematics ------------------ S-27 Virus | -7/Zion | Archive Fabricated ------------ Nothing Alien Tech Used ----------------- None Achievements -------------- None Challenges ------------ None Game ------ Seed FlakBehemothSegregator Manual? 0 Play Time 00:11:55 Cumulative 276.3 hours Start 2023.04.21 @ 21:55:59 End 2023.04.21 @ 22:05:48 Sessions 1 Manual Loads 0 Difficulty Rogue Special Mode None Game No. 116 Rogue 100 Adventurer 8 Explorer 8 Win Type - Total 20 Types 12/1/4/1/1/1/0/0/0 Lore% 87 Gallery% 84 Achievement% 75 Wizard Run 0 Options --------- ASCII 1 Keyboard 1 Movement Vi Keybinds 0 Fullscreen 1 Font 18/CogWide Map View 76x50 Tactical HUD 1 Map Filters NONE Filters NONE Steam 0 RUN: f70a627e-609a-4cae-9d47-f370a66dc2ff